bitfinex/quotes_SOLUSD_20241205
["timestamp","ask_amount","ask_price","bid_price","bid_amount"]
[1733386849867,1.5298,235.37,235.32,4.243]
[1733386850865,1.5298,235.37,235.31,0.1]
[1733386851673,1.5298,235.37,235.29,0.1]
[1733386852173,0.2146,235.36,235.29,0.1]
[1733386852882,0.2146,235.36,235.26,4.243]
[1733386853456,0.2146,235.36,235.24,4.243]
[1733386853749,0.2146,235.36,235.26,4.243]
[1733386853954,1.5298,235.37,235.3,4.243]
[1733386855251,1.5298,235.37,235.3,4.343]
[1733386856147,1.5298,235.37,235.32,4.243]
[1733386857161,1.5298,235.37,235.3,0.1]
[1733386860082,1.5298,235.37,235.27,4.343]
[1733386860485,0.2146,235.36,235.27,0.1]
[1733386860780,1.5298,235.37,235.27,4.343]
[1733386862787,1.5298,235.37,235.27,0.1]
[1733386863659,1.5298,235.37,235.27,4.343]
[1733386865988,0.2146,235.41,235.29,4.243]
[1733386866285,6.3865,235.42,235.32,4.243]
[1733386866581,0.2146,235.41,235.32,4.243]
[1733386867160,6.1719,235.42,235.34,4.243]
[1733386867359,0.2146,235.41,235.34,4.243]
[1733386867559,6.1719,235.42,235.34,4.243]
[1733386867761,1.6506,235.43,235.34,4.243]
[1733386869565,1.6506,235.43,235.35,4.243]
[1733386870116,1.6506,235.43,235.35,17.25351318]
[1733386871585,1.6506,235.43,235.35,17.35351318]
[1733386871788,1.6506,235.43,235.37,4.243]
[1733386874767,1.6506,235.43,235.36,4.343]
[1733386875500,1.6506,235.43,235.36,4.243]
[1733386875797,1.6506,235.43,235.33,4.243]
[1733386876090,1.6506,235.43,235.34,4.243]
[1733386876470,0.2146,235.42,235.34,4.243]
[1733386876792,1.6506,235.43,235.35,4.243]
[1733386876970,1.6506,235.43,235.35,12.56653001]
[1733386877487,1.6506,235.43,235.36,28.019884]
[1733386877889,1.6506,235.43,235.36,28.119884]
[1733386878293,1.6506,235.43,235.36,4.343]
[1733386878593,1.6506,235.43,235.36,0.1]
[1733386879099,0.2146,235.42,235.36,0.1]
[1733386881291,1.6506,235.43,235.36,0.1]
[1733386881669,1.6506,235.43,235.37,4.243]
[1733386882169,1.6506,235.43,235.36,4.343]
[1733386882383,1.6506,235.43,235.37,23.776884]
[1733386883292,1.6506,235.43,235.37,4.243]
[1733386884683,1.6506,235.43,235.37,4.343]
[1733386885281,6.1953,235.47,235.39,4.243]
[1733386885998,6.4099,235.47,235.39,4.243]
[1733386886375,6.1953,235.47,235.4,23.776884]
[1733386887404,6.1953,235.47,235.39,28.019884]
[1733386887578,6.1953,235.47,235.39,28.119884]
[1733386887779,1.5913,235.48,235.39,32.20041401]
[1733386887975,1.5913,235.48,235.4,12.56653001]
[1733386888303,1.5913,235.48,235.4,12.66653001]
[1733386889300,1.5913,235.48,235.4,4.343]
[1733386893498,1.5913,235.48,235.41,28.019884]
[1733386893697,1.5913,235.48,235.41,36.34341401]
[1733386894011,1.5913,235.48,235.41,23.776884]
[1733386894179,1.5913,235.48,235.4,23.876884]
[1733386894684,1.5913,235.48,235.41,4.243]
[1733386896578,1.5913,235.48,235.41,4.343]
[1733386897102,1.5913,235.48,235.42,28.019884]
[1733386897290,17.18805505,235.52,235.44,4.343]
[1733386898410,17.18805505,235.52,235.44,0.1]
[1733386898902,1.5728,235.61,235.51,32.20041401]
[1733386899102,1.7874,235.61,235.52,8.32353001]
[1733386899310,1.7874,235.61,235.51,23.876884]
[1733386899611,1.7874,235.61,235.51,0.1]
[1733386899809,1.7874,235.61,235.51,4.343]
[1733386901586,1.7874,235.61,235.51,0.1]
[1733386901794,5.8352135,235.61,235.51,0.1]
[1733386902199,5.8352135,235.61,235.46,23.876884]
[1733386902502,5.8352135,235.61,235.45,0.97078542]
[1733386902503,4.60977228,235.6,235.45,0.1]
[1733386902698,16.20523161,235.59,235.45,0.1]
[1733386903006,5.11532783,235.58,235.45,0.1]
[1733386903181,0.2146,235.57,235.45,0.1]
[1733386903689,5.32992783,235.57,235.45,0.1]
[1733386904491,5.11532783,235.56,235.45,4.343]
[1733386904701,0.2146,235.55,235.45,0.1]
[1733386904991,1.6041,235.54,235.45,0.1]
[1733386905186,0.2146,235.53,235.45,0.1]
[1733386908314,1.6041,235.54,235.46,12.56653001]
[1733386908515,1.6041,235.54,235.45,0.9472045]
[1733386908516,1.6041,235.54,235.49,4.243]
[1733386908722,0.2146,235.58,235.49,4.243]
[1733386908893,17.56713161,235.59,235.49,4.243]
[1733386909600,0.2146,235.58,235.49,4.243]
[1733386910489,0.2146,235.58,235.49,4.343]
[1733386911707,17.56713161,235.59,235.49,4.343]
[1733386913392,0.2146,235.58,235.49,4.343]
[1733386913592,17.56713161,235.59,235.5,12.66653001]
[1733386914517,15.99063161,235.59,235.53,4.343]
[1733386914929,0.2146,235.65,235.53,4.343]
[1733386915524,0.2146,235.65,235.54,4.343]
[1733386915695,0.2146,235.66,235.55,13.41323403]
[1733386915999,0.2146,235.66,235.55,13.51323403]
[1733386917599,2.3711774,235.67,235.56,28.019884]
[1733386917922,2.3711774,235.67,235.56,23.776884]
[1733386918723,2.3711774,235.67,235.57,4.243]
[1733386919020,2.3711774,235.67,235.57,4.343]
[1733386919217,2.1565774,235.67,235.59,4.243]
[1733386920099,2.1565774,235.67,235.58,0.1]
[1733386920402,2.1565774,235.67,235.59,4.243]
[1733386921611,0.2146,235.66,235.59,4.243]
[1733386922523,0.5081774,235.67,235.65,8.32353001]
[1733386922725,0.5081774,235.67,235.66,8.32353001]
[1733386922935,0.5081774,235.67,235.66,32.10041401]
[1733386923604,0.5081774,235.67,235.66,36.34341401]
[1733386924626,0.4081774,235.67,235.66,36.34341401]
[1733386924931,13.72546351,235.81,235.71,4.243]
[1733386925105,12.8231774,235.91,235.7,43.776884]
[1733386925106,0.2146,235.9,235.79,4.243]
[1733386926127,0.2146,235.9,235.78,4.243]
[1733386926304,0.2146,235.9,235.8,4.243]
[1733386928505,0.2146,235.9,235.76,4.243]
[1733386928705,12.60524332,235.9,235.76,4.243]
[1733386929232,12.60524332,235.9,235.77,9.1694594]
[1733386929736,12.60524332,235.9,235.78,4.243]
[1733386930242,12.60524332,235.9,235.8,4.243]
[1733386931203,12.60524332,235.9,235.81,4.243]
[1733386931405,9.5831774,235.91,235.81,4.243]
[1733386931406,9.5831774,235.91,235.81,8.32353001]
[1733386931616,9.7977774,235.91,235.82,8.32353001]
[1733386931821,9.7977774,235.91,235.81,23.776884]
[1733386932530,9.7977774,235.91,235.82,4.243]
[1733386933132,9.7977774,235.91,235.74,0.84574829]
[1733386933318,9.7977774,235.91,235.79,8.32353001]
[1733386933633,9.7977774,235.91,235.81,4.243]
[1733386934701,9.7977774,235.91,235.8,4.243]
[1733386936037,9.7977774,235.91,235.77,8.32353001]
[1733386936219,9.7977774,235.91,235.79,4.243]
[1733386938833,9.7977774,235.91,235.78,28.019884]
[1733386939440,9.7977774,235.91,235.8,4.243]
[1733386942239,9.7977774,235.91,235.81,8.32353001]
[1733386942410,9.7977774,235.91,235.82,4.243]
[1733386943106,9.7977774,235.91,235.82,23.776884]
[1733386943329,9.5831774,235.91,235.82,23.776884]
[1733386943531,9.5831774,235.91,235.82,28.019884]
[1733386944018,9.5831774,235.91,235.82,36.34341401]
[1733386945239,9.5831774,235.91,235.82,32.10041401]
[1733386945933,9.7977774,235.91,235.82,12.56653001]
[1733386946232,9.5831774,235.91,235.82,12.56653001]
[1733386946437,9.5831774,235.91,235.82,36.34341401]
[1733386946621,9.5831774,235.91,235.82,32.10041401]
[1733386946820,8.0081774,235.91,235.82,32.10041401]
[1733386947122,8.0081774,235.91,235.82,36.34341401]
[1733386947927,8.0081774,235.91,235.89,4.243]
[1733386948127,8.0081774,235.91,235.9,36.34341401]
[1733386948434,8.0081774,235.91,235.9,32.10041401]
[1733386949437,8.0081774,235.91,235.9,36.34341401]
[1733386952437,8.0081774,235.91,235.9,36.46890401]
[1733386952739,8.0081774,235.91,235.9,37.31416597]
[1733386952925,8.0081774,235.91,235.9,70.60828601]
[1733386953244,20.6218424,235.92,235.9,70.60828601]
[1733386953245,20.6218424,235.92,235.91,15.09118]
[1733386953421,20.6218424,235.92,235.91,80.48571405]
[1733386954126,1.8559,236.09,235.99,4.243]
[1733386954331,1.8559,236.09,236.01,4.243]
[1733386954547,1.6413,236.09,236.01,4.243]
[1733386955739,1.6413,236.09,236.02,4.243]
[1733386955915,1.6413,236.09,236.02,12.56653001]
[1733386956314,0.3486,236.16,236.05,4.243]
[1733386956538,2.20443312,236.14,236.04,8.32353001]
[1733386956744,0.2146,236.13,236.04,8.32353001]
[1733386957241,0.2146,236.13,236.05,4.243]
[1733386957716,0.5081774,236.14,236.04,8.32353001]
[1733386958529,0.5081774,236.14,236.05,4.243]
[1733386959136,0.5081774,236.14,236.0,0.84503813]
[1733386959337,5.66893774,236.13,236.01,28.019884]
[1733386959535,5.66893774,236.13,236.01,36.34341401]
[1733386959931,5.66893774,236.13,235.94,0.84510183]
[1733386960239,5.66893774,236.13,235.98,8.32353001]
[1733386960442,5.66893774,236.13,235.99,4.243]
[1733386960644,7.9811,236.12,235.99,4.243]
[1733386960826,5.66893774,236.11,235.99,4.243]
[1733386961326,5.66893774,236.11,236.01,8.32353001]
[1733386961517,5.66893774,236.11,236.02,4.243]
[1733386962423,5.66893774,236.11,236.03,4.243]
[1733386962617,5.66893774,236.11,236.04,23.776884]
[1733386962836,5.66893774,236.11,236.02,23.776884]
[1733386963249,5.66893774,236.11,235.94,0.84507929]
[1733386963557,5.66893774,236.11,236.0,4.243]
[1733386964522,5.66893774,236.11,235.99,4.243]
[1733386965864,5.66893774,236.11,236.0,4.243]
[1733386966151,5.66893774,236.11,236.01,4.243]
[1733386967025,5.66893774,236.11,236.02,4.243]
[1733386967222,0.2146,236.11,236.02,4.243]
[1733386967524,1.05637804,236.11,236.0,8.32353001]
[1733386968040,1.05637804,236.11,236.01,4.243]
[1733386969318,1.05637804,236.11,236.01,5.08806871]
[1733386969523,7.9811,236.12,236.01,13.41159872]
[1733386969742,7.9811,236.12,236.02,12.56653001]
[1733386969951,7.9811,236.12,236.03,0.84499274]
[1733386970449,1.05627631,236.11,236.03,0.84499274]
[1733386971032,7.9811,236.12,236.03,0.84499274]
[1733386972555,7.9811,236.12,236.04,8.32353001]
[1733386972857,1.5679,236.12,236.05,5.07896135]
[1733386974252,1.5679,236.12,235.97,0.84494698]
[1733386974427,1.5679,236.12,236.02,8.32353001]
[1733386974634,1.5679,236.12,236.03,0.84499737]
[1733386975357,1.5679,236.12,236.04,8.32353001]
[1733386975557,1.5679,236.12,236.03,8.32353001]
[1733386976145,1.5679,236.12,236.04,0.84499461]
[1733386976447,1.5679,236.12,236.04,5.07899461]
[1733386976952,1.5679,236.12,236.05,12.55753001]
[1733386977331,0.5081774,236.14,235.94,6.4427514]
[1733386977332,0.5081774,236.14,236.07,8.32353001]
[1733386977648,0.5081774,236.14,236.08,4.234]
[1733386978062,0.5081774,236.14,235.99,0.8448151]
[1733386978358,5.07469052,236.14,236.0,8.32353001]
[1733386978659,1.05631711,236.13,236.01,13.4025837]
[1733386979431,1.05626901,236.13,236.01,13.4025837]
[1733386980639,0.5081774,236.14,236.04,4.234]
[1733386980838,0.5081774,236.14,236.05,0.84492807]
[1733386983854,0.5081774,236.14,236.03,5.0789271]
[1733386984064,0.5081774,236.14,236.03,9.16845711]
[1733386984239,0.5081774,236.14,236.03,0.8449271]
[1733386984569,0.5081774,236.14,236.06,8.32353001]
[1733386984741,0.5081774,236.14,236.05,8.32353001]
[1733386985145,0.5081774,236.14,236.06,4.234]
[1733386985345,0.5081774,236.14,236.07,9.1683737]
[1733386985566,0.5081774,236.14,236.08,8.32353001]
[1733386986154,0.5081774,236.14,236.07,8.32353001]
[1733386986353,0.5081774,236.14,236.08,4.234]
[1733386987057,0.5081774,236.14,236.1,4.234]
[1733386987762,0.5081774,236.14,236.12,4.234]
[1733386988745,0.5081774,236.14,236.1,4.234]
[1733386989247,0.5081774,236.14,236.12,4.234]
[1733386989851,0.5081774,236.14,236.13,28.010884]
[1733386991548,0.5081774,236.14,236.13,4.234]
[1733386992675,0.5081774,236.14,236.11,4.234]
[1733386993374,0.5081774,236.14,236.11,5.07870236]
[1733386993669,0.5081774,236.14,236.13,28.010884]
[1733386994661,0.5081774,236.14,236.11,4.234]
[1733386994865,0.5081774,236.14,236.13,4.234]
[1733386997054,0.5081774,236.14,236.13,28.010884]
[1733386998470,0.5081774,236.14,236.13,28.85542291]
[1733386999260,0.5081774,236.14,236.13,37.17895292]
[1733387000271,0.5081774,236.14,236.13,37.30444292]
[1733387002785,0.5081774,236.14,236.13,37.42993292]
[1733387003686,0.5081774,236.14,236.13,37.30444292]
[1733387003885,0.5081774,236.14,236.13,37.17895292]
[1733387004051,7.87826343,236.3,236.13,13.52755892]
[1733387004384,4.39614811,236.29,236.18,4.234]
[1733387004968,0.134,236.28,236.15,8.32353001]
[1733387005281,5.60949972,236.28,236.16,0.84452347]
[1733387005577,4.39614811,236.27,236.12,0.84451922]
[1733387005787,4.39614811,236.27,236.12,9.16804923]
[1733387005958,0.134,236.26,236.12,9.16804923]
[1733387006159,4.48991527,236.26,236.12,9.16804923]
[1733387006461,4.48991527,236.26,236.13,4.234]
[1733387006769,4.39614811,236.25,236.07,5.07862266]
[1733387006976,4.39614811,236.25,236.14,4.234]
[1733387007184,0.134,236.24,236.14,4.234]
[1733387008066,0.134,236.24,236.15,4.234]
[1733387008683,0.134,236.24,236.03,4.234]
[1733387008684,1.5947,236.22,236.03,4.234]
[1733387009070,4.77436979,236.21,236.02,4.234]
[1733387010597,4.77436979,236.21,236.04,4.234]
[1733387011289,3.93871527,236.21,236.04,4.234]
[1733387011466,32.083684,236.2,236.02,0.84497794]
[1733387011790,25.431284,236.18,235.96,4.234]
[1733387012085,5.61051311,236.17,235.96,12.55753001]
[1733387012483,5.61051311,236.17,235.96,4.234]
[1733387012720,1.5706,236.16,235.95,4.234]
[1733387012862,1.5706,236.16,235.97,4.234]
[1733387013192,4.94734811,236.15,235.98,23.776884]
[1733387014070,4.94734811,236.15,235.95,8.32353001]
[1733387014071,4.94734811,236.15,235.97,4.234]
[1733387014285,4.94734811,236.15,235.99,4.234]
[1733387014972,4.94734811,236.15,235.94,23.776884]
[1733387015188,4.94734811,236.15,235.97,4.234]
[1733387015391,7.9843,236.14,235.93,0.84515156]
[1733387015684,5.39651527,236.13,235.91,8.32353001]
[1733387015886,1.5021,236.12,235.91,8.32353001]
[1733387016184,4.94734811,236.11,235.92,4.234]
[1733387016889,7.9863,236.1,235.94,4.234]
[1733387017084,4.94734811,236.09,235.91,23.776884]
[1733387017286,4.94734811,236.09,235.92,4.234]
[1733387017893,4.94734811,236.09,235.91,23.776884]
[1733387018092,4.94734811,236.09,235.91,32.10041401]
[1733387018262,4.94734811,236.09,235.92,4.234]
[1733387018778,1.6511,236.06,235.86,9.16894108]
[1733387019287,1.6511,236.06,235.87,4.234]
[1733387019888,1.6511,236.06,235.88,4.234]
[1733387020096,1.6511,236.06,235.89,28.010884]
[1733387020567,6.57641311,236.06,235.89,28.010884]
[1733387020983,1.6459,236.05,235.85,4.234]
[1733387021295,6.59324811,236.05,235.85,5.07960667]
[1733387022172,6.59324811,236.05,235.87,4.234]
[1733387022777,6.59324811,236.05,235.87,12.55753001]
[1733387022997,6.59324811,236.05,235.91,4.234]
[1733387023483,6.59324811,236.05,235.87,4.234]
[1733387024297,13.18649611,236.05,235.87,4.234]
[1733387025770,13.18649611,236.05,235.87,13.4031589]
[1733387026495,13.18649611,236.05,235.89,4.234]
[1733387026967,13.18649611,236.05,235.87,5.07962889]
[1733387027172,13.18649611,236.05,235.88,23.776884]
[1733387027373,13.18649611,236.05,235.88,28.010884]
[1733387027580,13.18649611,236.05,235.88,24.62244766]
[1733387027897,13.18649611,236.05,235.88,32.10041401]
[1733387028103,13.18649611,236.05,235.9,28.010884]
[1733387028398,13.18649611,236.05,235.9,4.234]
[1733387028774,11.54059611,236.05,235.9,4.234]
[1733387028974,6.3388,236.02,235.9,4.234]
[1733387029199,6.52434811,236.01,235.83,4.234]
[1733387030199,6.52434811,236.01,235.84,4.234]
[1733387031179,6.52434811,236.01,235.86,4.234]
[1733387031499,6.52434811,236.01,235.88,4.234]
[1733387031802,1.577,236.01,235.9,12.55753001]
[1733387031977,1.577,236.01,235.94,4.234]
[1733387032372,1.577,236.01,235.88,4.234]
[1733387032600,1.577,236.01,235.92,28.010884]
[1733387032789,1.577,236.01,235.95,4.234]
[1733387032990,1.577,236.01,235.92,23.776884]
[1733387033193,1.577,236.01,235.89,0.8454281]
[1733387033194,1.577,236.01,235.9,23.776884]
[1733387033582,1.577,236.01,235.93,4.234]
[1733387035587,1.6029,236.07,235.94,4.234]
[1733387036608,1.6029,236.07,235.95,4.234]
[1733387037601,1.6029,236.07,235.96,4.234]
[1733387037602,7.76739972,236.07,235.96,4.234]
[1733387037805,2.69472732,236.06,235.96,4.234]
[1733387038486,23.776884,236.05,235.96,4.234]
[1733387038883,23.776884,236.05,235.89,4.234]
[1733387039104,23.776884,236.05,235.89,13.40301022]
[1733387039615,23.776884,236.05,235.89,5.07948021]
[1733387039791,23.776884,236.03,235.9,4.234]
[1733387040105,29.94138372,236.03,235.9,4.234]
[1733387041108,29.94138372,236.03,235.88,4.234]
[1733387041683,23.776884,236.01,235.88,4.234]
[1733387042214,23.776884,236.01,235.89,4.234]
[1733387042986,23.776884,236.01,235.88,4.234]
[1733387043381,1.5519,236.02,235.88,4.234]
[1733387043609,1.5519,236.02,235.89,0.84549194]
[1733387044109,1.5519,236.02,235.86,4.234]
[1733387044807,23.776884,236.01,235.86,4.234]
[1733387045486,23.776884,236.01,235.87,5.07951972]
[1733387046696,23.776884,236.01,235.87,0.84551972]
[1733387048384,25.47171518,236.01,235.87,0.84551972]
[1733387049106,25.47171518,236.01,235.89,4.234]
[1733387049305,1.5519,236.02,235.92,12.55753001]
[1733387049490,1.5519,236.02,235.93,0.84528217]
[1733387051394,23.776884,236.01,235.87,4.234]
[1733387051614,28.59402006,236.01,235.87,5.07943421]
[1733387052087,28.59402006,236.01,235.87,13.40296422]
[1733387054220,28.59402006,236.01,235.89,4.234]
[1733387055292,28.59402006,236.01,235.88,0.84545687]
[1733387056414,28.59402006,236.01,235.88,5.07945687]
[1733387057512,28.59402006,236.01,235.88,0.84545687]
[1733387057818,4.81713606,236.01,235.89,12.55753001]
[1733387057999,1.5519,236.02,235.9,0.84537888]
[1733387059295,23.776884,236.01,235.9,0.84537888]
[1733387061118,23.776884,236.01,235.9,5.07937888]
[1733387061700,23.776884,236.01,235.91,4.234]
[1733387062019,23.776884,236.01,235.9,5.07937888]
[1733387063020,23.776884,236.01,235.91,4.234]
[1733387063203,23.776884,236.01,235.92,0.84533176]
[1733387066812,1.5519,236.02,235.9,4.234]
[1733387067113,1.5519,236.02,235.91,0.84533841]
[1733387067516,1.5519,236.02,235.93,8.32353001]
[1733387067701,1.5519,236.02,235.94,5.07930847]
[1733387067901,6.16449972,236.07,235.94,0.84530847]
[1733387067902,23.776884,236.07,235.94,0.84530847]
[1733387068935,25.44458816,236.07,235.94,0.84530847]
[1733387069227,23.776884,236.07,235.96,4.234]
[1733387069426,7.5435,236.08,235.96,0.84518294]
[1733387069597,23.776884,236.07,235.9,0.84523815]
[1733387069799,11.06788194,236.06,235.93,8.32353001]
[1733387070124,29.32677261,236.07,235.93,8.32353001]
[1733387070297,29.32677261,236.07,235.9,0.84523815]
[1733387070630,23.776884,236.05,235.9,8.32353001]
[1733387070807,26.84617216,236.05,235.84,0.84539544]
[1733387071000,9.28400213,236.08,235.83,8.151]
[1733387071001,23.776884,236.01,235.83,1.5007]
[1733387071196,23.776884,235.99,235.82,4.234]
[1733387071400,23.776884,235.99,235.78,7.49591749]
[1733387071401,23.776884,235.97,235.83,8.32353001]
[1733387071623,23.776884,235.97,235.87,4.234]
[1733387071927,23.776884,235.96,235.83,8.32353001]
[1733387072133,27.73966527,235.96,235.82,8.32353001]
[1733387072608,23.776884,235.96,235.84,12.55753001]
[1733387073424,23.776884,235.98,235.84,12.55753001]
[1733387073608,23.776884,235.98,235.84,8.32353001]
[1733387073808,23.776884,235.99,235.85,8.32353001]
[1733387074216,23.776884,235.99,235.79,0.84579196]
[1733387074412,26.39451553,235.99,235.79,1.81517755]
[1733387074628,23.776884,235.97,235.84,8.32353001]
[1733387075102,23.776884,235.97,235.85,8.32353001]
[1733387075305,23.776884,235.97,235.84,8.32353001]
[1733387075505,28.4332795,235.97,235.84,8.32353001]
[1733387075802,23.776884,235.98,235.87,8.32353001]
[1733387076007,26.14258178,235.98,235.87,8.32353001]
[1733387076223,28.50827956,235.98,235.87,8.32353001]
[1733387076640,28.50827956,235.98,235.88,8.32353001]
[1733387076943,23.776884,235.96,235.88,8.32353001]
[1733387077147,23.776884,235.96,235.89,8.32353001]
[1733387077444,5.80080896,235.97,235.89,8.32353001]
[1733387077651,5.80080896,235.97,235.85,0.84567141]
[1733387077845,5.80080896,235.97,235.88,8.32353001]
[1733387078648,5.80080896,235.97,235.89,8.32353001]
[1733387079843,23.776884,235.99,235.92,8.32353001]
[1733387080523,28.4332795,235.99,235.92,8.32353001]
[1733387080742,28.4332795,235.99,235.91,12.55753001]
[1733387081531,28.4332795,235.99,235.92,8.32353001]
[1733387081916,28.4332795,235.99,235.91,12.55753001]
[1733387082122,28.4332795,235.99,235.9,8.32353001]
[1733387082339,28.4332795,235.99,235.91,8.32353001]
[1733387083043,28.4332795,235.99,235.83,0.84543821]
[1733387083344,1.6311,236.0,235.83,0.84543821]
[1733387083345,23.776884,235.97,235.91,8.32353001]
[1733387083915,23.776884,235.97,235.83,0.84543821]
[1733387084119,23.776884,235.97,235.91,8.32353001]
[1733387084354,23.776884,235.97,235.92,4.234]
[1733387085647,3.52016503,235.97,235.92,4.234]
[1733387086348,3.52016503,235.97,235.92,12.55753001]
[1733387086523,3.52016503,235.97,235.94,4.234]
[1733387087047,23.776884,235.99,235.94,4.234]
[1733387088546,4.02533717,236.02,235.97,8.32353001]
[1733387088931,4.02533717,236.02,235.96,8.32353001]
[1733387089649,4.02533717,236.02,235.96,12.55753001]
[1733387089825,4.02533717,236.02,235.96,4.234]
[1733387091065,4.02533717,236.02,235.95,4.234]
[1733387091358,4.02533717,236.02,235.95,12.55753001]
[1733387093655,4.02533717,236.02,235.9,0.84529722]
[1733387093833,4.02533717,236.02,235.94,8.32353001]
[1733387094133,4.02533717,236.02,235.95,4.234]
[1733387094639,4.02533717,236.02,235.95,12.55753001]
[1733387094838,4.02533717,236.02,235.96,8.32353001]
[1733387095045,4.02533717,236.02,235.96,4.234]
[1733387095228,4.02533717,236.02,235.94,8.32353001]
[1733387096149,4.02533717,236.02,235.95,4.234]
[1733387097356,4.02533717,236.02,235.94,12.55753001]
[1733387099243,4.02533717,236.02,235.96,4.234]
[1733387099757,4.02533717,236.02,235.92,8.32353001]
[1733387100047,4.02533717,236.02,235.95,8.32353001]
[1733387100760,4.02533717,236.02,235.95,4.234]
[1733387101057,4.02533717,236.02,235.95,12.55753001]
[1733387101357,4.02533717,236.02,235.9,0.84529722]
[1733387101559,4.02533717,236.02,235.95,8.32353001]
[1733387102159,4.02533717,236.02,235.95,4.234]
[1733387102543,4.02533717,236.02,235.84,17.2584]
[1733387102744,4.02533717,236.02,235.92,8.32353001]
[1733387102932,4.02533717,236.02,235.93,4.234]
[1733387103657,4.02533717,236.02,235.93,12.55753001]
[1733387104033,3.34090912,236.07,235.93,12.55753001]
[1733387104034,28.98496461,236.06,235.93,12.55753001]
[1733387104231,28.98496461,236.06,235.86,6.71804908]
[1733387104433,28.98496461,236.06,235.94,4.234]
[1733387105653,28.98496461,236.06,235.92,4.234]
[1733387106157,28.98496461,236.06,235.86,2.48404908]
[1733387106363,23.776884,236.04,235.89,4.234]
[1733387106580,23.776884,236.02,235.89,4.234]
[1733387106860,5.209094,236.01,235.89,4.234]
[1733387107033,23.776884,236.0,235.81,0.84555841]
[1733387107231,4.18221282,235.99,235.88,4.234]
[1733387107444,8.0314,235.98,235.81,5.07955841]
[1733387107631,5.209094,235.97,235.83,4.234]
[1733387108853,5.209094,235.97,235.82,8.32353001]
[1733387109450,8.0314,235.98,235.94,8.32353001]
[1733387109656,1.6375,235.98,235.94,8.32353001]
[1733387111044,1.6375,235.98,235.92,8.32353001]
[1733387111265,1.6375,235.98,235.93,8.32353001]
[1733387112459,1.6375,235.98,235.86,23.776884]
[1733387112641,1.6375,235.98,235.88,23.776884]
[1733387112842,1.6375,235.98,235.91,8.32353001]
[1733387113350,1.6375,235.98,235.88,23.776884]
[1733387113660,1.6375,235.98,235.91,8.32353001]
[1733387114041,1.6375,235.98,235.92,8.32353001]
[1733387114247,1.6375,235.98,235.93,8.32353001]
[1733387114447,1.6375,235.98,235.92,8.32353001]
[1733387115369,1.6375,235.98,235.91,8.32353001]
[1733387116251,1.6375,235.98,235.88,23.776884]
[1733387116569,1.6375,235.98,235.92,23.776884]
[1733387117068,1.6375,235.98,235.93,8.32353001]
[1733387117575,1.5204,236.03,235.94,8.32353001]
[1733387118848,1.5204,236.03,235.96,8.32353001]
[1733387119070,1.5204,236.03,235.95,8.32353001]
[1733387119277,1.5204,236.03,235.96,4.234]
[1733387119777,1.5204,236.03,235.95,12.55753001]
[1733387119954,1.5204,236.03,235.97,12.55753001]
[1733387120282,1.6287,236.08,235.97,12.55753001]
[1733387121155,1.6287,236.08,235.98,8.32353001]
[1733387121355,1.6287,236.08,235.99,0.84525077]
[1733387121660,1.6287,236.08,236.0,23.776884]
[1733387122057,1.6287,236.08,236.0,32.10041401]
[1733387122260,1.6287,236.08,236.01,8.32353001]
[1733387122453,1.6287,236.08,236.02,4.234]
[1733387123075,1.6287,236.08,235.95,0.84512379]
[1733387123274,1.6287,236.08,235.97,8.32353001]
[1733387123452,1.6287,236.08,235.97,4.234]
[1733387124269,1.6287,236.08,235.97,8.32353001]
[1733387124574,1.6287,236.08,235.96,12.55753001]
[1733387124767,1.6287,236.08,235.96,4.234]
[1733387125151,1.6287,236.08,235.98,8.32353001]
[1733387125353,1.6287,236.08,235.99,8.32353001]
[1733387126071,1.6287,236.08,236.0,8.32353001]
[1733387126252,1.6287,236.08,236.01,8.32353001]
[1733387126779,1.6287,236.08,236.0,12.55753001]
[1733387127075,1.6287,236.08,236.0,4.234]